Cogmind - Beta 14 @@@ ROGUE MODE // 2024.08.07 @ 05:40:45 Player: Zaros426 Result: Destroyed by G-47 Trooper with Particle Gun Performance ------------- Evolutions (0) 0 Regions Visited (3) 600 Robots Destroyed (53) 265 Value Destroyed (1256) 1256 Prototype IDs (6) 120 Alien Tech Used (0) 0 Bonus (0) 0 TOTAL SCORE: 2241 Bonus ------- None Cogmind --------- Core Integrity 0/250 Matter 21/300 Energy 245/265 System Corruption 0% Temperature Warning (378) Movement Treading (160) Location -8/Recycling Parts ------- > --- POWER (1) -------- Improved Ion Engine > --- PROPULSION (2) --- Light Treads Spiked Treads > --- UTILITY (2) ------ Scrap Shield > --- WEAPON (2) ------- Battle Cannon Slug Cannon > --- INVENTORY (5) ---- Subdweller Power Source Light Treads Large Storage Unit Structural Scanner Peak State ------------ > --- POWER ------------ Neutrino Core > --- PROPULSION ------- Light Treads Spiked Treads > --- UTILITY ---------- Scrap Shield > --- WEAPON ----------- Improved Light Cannon Bore Cannon > --- INVENTORY -------- Light Nuclear Core Light Treads Large Storage Unit Structural Scanner Improved Light Cannon [Rating: 20] Favorites ----------- Power Neutrino Core Engine Subdweller Power Source Power Core Neutrino Core Propulsion Light Treads Treads Light Treads Wheel Wheel Utility Scrap Shield Device Seismic Detector Storage Large Storage Unit Processor Signal Interpreter Protection Scrap Shield Weapon Bore Cannon Energy Gun Particle Gun Ballistic Gun Assault Rifle Ballistic Cannon Bore Cannon Build | -11 -10 -10 -8 ------- Run | Yrd Mat Sub Rec Slots Evolved . | . . . . Power . | . . . . Propulsion . | . . . . Utility . | . . . . Weapon . | . . . . Parts Attached 44 | 8 20 13 3 Power 8 | 2 1 3 2 Engine 6 | 2 . 2 2 Core 2 | . 1 1 . Reactor . | . . . . Propulsion 10 | 2 7 1 . Treads 3 | . 2 1 . Leg . | . . . . Wheel 7 | 2 5 . . Hover . | . . . . Flight . | . . . . Utility 13 | 2 7 4 . Device 7 | 2 4 1 . Storage 1 | . 1 . . Processor 2 | . 2 . . Hackware . | . . . . Protection 3 | . . 3 . Artifact . | . . . . Weapon 13 | 2 5 5 1 Energy Gun 3 | . 3 . . Energy Cannon . | . . . . Ballistic Gun 4 | 2 2 . . Ballistic Cannon 6 | . . 5 1 Launcher . | . . . . Special Weapon . | . . . . Impact Weapon . | . . . . Slashing Weapon . | . . . . Piercing Weapon . | . . . . Special Melee Weapon . | . . . . Unidentified Prototypes . | . . . . Parts Lost 5 | . 2 2 1 Power 1 | . . 1 . Propulsion 1 | . 1 . . Utility 1 | . . 1 . Weapon 2 | . 1 . 1 Highest Loss Streak 1 | . 1 1 1 To Critical Strikes . | . . . . Average Slot Usage (%) 87 | . 98 84 84 Engine 6 | . 9 5 13 Core 6 | . 4 8 . Treads 24 | . 15 28 28 Wheel 2 | . 12 . . Device 5 | . 21 . . Protection 10 | . . 13 14 Energy Gun 4 | . 19 . . Ballistic Gun 1 | . 8 . . Ballistic Cannon 21 | . . 27 27 Peak Build Rating 20 | 7 12 20 18 Average Rating 15 | 5 9 18 17 On Entrance 9 | . 7 12 18 Naked Turns . | . . . . Heaviest Build 45 | 11 32 45 41 Greatest Support 40 | 20 40 40 40 Greatest Overweight (x) 1 | . 1 1 1 Average Overweight (x) . | . . . . Largest Inventory Capacity 15 | 5 15 15 5 Average Capacity 5 | 5 7 5 5 Most Carried 11 | 2 11 11 5 Average Carried 4 | 1 5 5 5 Final Capacity 15 | 5 15 5 5 Final Carried 11 | 2 11 5 4 Class Distribution -------------------- 57% | Mutant 36% | Derelict-Mutant 5% | Scavenger-Mutant Dominant Class ---------------- Mutant | -10/Materials Mutant | -10/Subcaves Derelict-Mutant | -8/Recycling Resources | -11 -10 -10 -8 ----------- Run | Yrd Mat Sub Rec Matter Collected 1624 | 334 308 940 42 Remotely . | . . . . Salvage Created 1477 | 145 874 323 135 Parts 96 | 17 43 26 10 Haulers Intercepted 2 | . 2 . . Recyclers Shooed 1 | . 1 . . Parts Field Recycled . | . . . . Retrieved Matter . | . . . . Parts Self-Destructed 10 | . . 10 . Prevented . | . . . . Kills | -11 -10 -10 -8 ------- Run | Yrd Mat Sub Rec Combat Hostiles Destroyed 36 | 1 14 18 3 Guns 15 | 1 14 . . Cannons 21 | . . 18 3 Classes Destroyed 13 | 3 6 2 2 Worker 3 | 1 2 . . Builder 1 | . 1 . . Tunneler 4 | 4 . . . Hauler 2 | . 2 . . Recycler 3 | . 3 . . Mechanic 1 | . 1 . . Watcher 3 | . 3 . . Swarmer 10 | . 6 4 . Grunt 9 | 1 8 . . Protector 1 | . . . 1 Sentry 2 | . . . 2 Cobbler 1 | . . 1 . Subdweller 14 | . . 14 . Best Kill Streak 8 | 3 8 3 2 Combat Bots Only 7 | 1 7 3 2 Max Kills in Single Turn 2 | 1 2 1 1 Gunslinging 1 | . 1 . . Exploded . | . . . . Melee . | . . . . Uniques/NPCs Destroyed . | . . . . Combat | -11 -10 -10 -8 -------- Run | Yrd Mat Sub Rec Hostile Shots Fired 225 | 3 73 118 31 Missed 55 | . 17 35 3 Damage Taken 2473 | 31 541 1561 340 Core 260 | . 98 127 35 Absorbed by Shields . | . . . . Regen/Repaired (Parts) 133 | . 133 . . Core Remaining (%) 100 | 100 . . . Volleys Fired 180 | 9 69 94 8 Largest 2 | 2 2 2 2 Hottest 130 | 40 130 105 105 Shots Fired 357 | 18 137 187 15 Gun 155 | 18 137 . . Cannon 202 | . . 187 15 Launcher . | . . . . Special . | . . . . Kinetic 264 | 18 44 187 15 Thermal 93 | . 93 . . Explosive . | . . . . Electromagnetic . | . . . . Robot Hit Streak 23 | 6 23 18 5 Robot Miss Streak 4 | 1 4 4 4 Penetration Max 2 | . . . 2 Secondary Targets 2 | . 2 . . Max Gunslinging Chain 1 | . 1 . . Shots Hit Robots 201 | 11 94 93 3 Core Hits 75 | 7 35 29 4 Critical Kills 6 | . . 4 2 Critical Parts Destroyed 5 | . . 3 2 Critical Strikes 26 | . 2 20 4 Burn 2 | . 2 . . Destroy 23 | . . 19 4 Blast 1 | . . 1 . Melee Attacks . | . . . . Impact . | . . . . Slashing . | . . . . Piercing . | . . . . Sneak Attacks . | . . . . Combat Hostiles . | . . . . Follow-up Attacks . | . . . . Damage Inflicted 3522 | 130 1397 1855 140 Guns 1527 | 130 1397 . . Cannons 1990 | . . 1850 140 Explosions . | . . . . Melee . | . . . . Ramming 5 | . . 5 . Kinetic 2544 | 130 424 1850 140 Thermal 973 | . 973 . . Explosive . | . . . . Electromagnetic . | . . . . Impact . | . . . . Slashing . | . . . . Piercing . | . . . . Highest Corruption . | . . . . Average Corruption . | . . . . Corruption Purged . | . . . . Corruption Blocked . | . . . . Overload Shots . | . . . . Overflow Damage 12 | . . 4 8 Projectiles 12 | . . 4 8 Explosions . | . . . . Melee . | . . . . Knockbacks 16 | . . 14 2 Impact 1 | . . 1 . Kinetic 14 | . . 13 1 Secondary 1 | . . . 1 Self-Inflicted Damage . | . . . . Shots . | . . . . Rammed 2 | . . 2 . Targets Rammed 2 | . . 2 . Kicked . | . . . . Crushed . | . . . . Highest Temperature 378 | . 322 4 378 Average Temperature 118 | . 117 2 186 Received Heat Transfer 606 | 18 186 267 135 Effects 1 | . 1 . . Energy Bleed 1 | . 1 . . Siege Activations . | . . . . Robots Corrupted . | . . . . Combat Hostiles . | . . . . Parts Fried . | . . . . Impact Corruptions . | . . . . Robots Melted . | . . . . Combat Hostiles . | . . . . Parts Melted 6 | . 6 . . Heat Transferred 2479 | . 2479 . . Parts Sabotaged . | . . . . Parts Stolen . | . . . . Parts Stripped . | . . . . Power Chain Reactions . | . . . . Alert | -11 -10 -10 -8 ------- Run | Yrd Mat Sub Rec Peak Influence 317 | 45 317 . 51 Initial 29 | . 29 . . Average 106 | 23 149 . 21 Maximum Alert Level 1 | . 1 . . Low Security (%) 76 | 100 64 . 100 Level 1 23 | . 35 . . Level 2 . | . . . . Level 3 . | . . . . Level 4 . | . . . . Level 5 . | . . . . High Security . | . . . . Max Security . | . . . . Squads Dispatched 2 | . 2 . . Investigation 1 | . 1 . . Extermination . | . . . . Reinforcement 1 | . 1 . . Assault . | . . . . Garrison . | . . . . Intercept . | . . . . Searches Triggered . | . . . . Construction Impeded . | . . . . Haulers Reinforced . | . . . . Active Scanning Responses . | . . . . Cargo Convoy Interrupts . | . . . . Stealth | -11 -10 -10 -8 --------- Run | Yrd Mat Sub Rec Distress Signals 2 | . 2 . . Communications Jammed . | . . . . Distress Signals . | . . . . Times Spotted 60 | 1 19 35 5 Peak Tracking Total 8 | . 4 8 4 Tactical Retreats 10 | . 1 9 . Traps | -11 -10 -10 -8 ------- Run | Yrd Mat Sub Rec Traps Triggered 1 | . . 1 . Indirectly . | . . . . Trap Hack Attempts . | . . . . Triggered . | . . . . Disarmed . | . . . . Reprogrammed . | . . . . Reused . | . . . . Traps Extracted . | . . . . Installed . | . . . . Triggered . | . . . . Machines | -11 -10 -10 -8 ---------- Run | Yrd Mat Sub Rec Machines Disabled 5 | . 2 2 1 Max in Single Turn 1 | . 1 1 1 Machines Repaired . | . . . . Machines Dismantled . | . . . . Machines Sabotaged . | . . . . Overloaded Fab Kills . | . . . . Hacking | -11 -10 -10 -8 --------- Run | Yrd Mat Sub Rec Machines Accessed 13 | . 9 1 3 Terminals 10 | . 7 . 3 Fabricators . | . . . . Repair Stations 1 | . 1 . . Recycling Units 1 | . 1 . . Scanalyzers . | . . . . Garrison Access . | . . . . Total Hacks 47 | . 33 3 11 Successful 30 | . 22 3 5 Failed 17 | . 11 . 6 Catastrophic 1 | . . . 1 Database Lockouts . | . . . . Manual 21 | . 13 . 8 Terminals 39 | . 28 . 11 Fabricators . | . . . . Repair Stations 4 | . 4 . . Recycling Units 1 | . 1 . . Scanalyzers . | . . . . Garrison Access . | . . . . Terminal Hacks 21 | . 15 3 3 Record 7 | . 4 3 . Robot Analysis 2 | . 2 . . Prototype ID Bank 5 | . 4 . 1 Branch Access Points 1 | . . . 1 Emergency Access Points 1 | . . . 1 Unreport Threat 2 | . 2 . . Assault Status 1 | . 1 . . Recall Investigation 1 | . 1 . . Zone Layout 1 | . 1 . . Fabricator Hacks . | . . . . Repair Station Hacks 4 | . 4 . . Scan Component 2 | . 2 . . Repair 2 | . 2 . . Recycling Unit Hacks . | . . . . Scanalyzer . | . . . . Garrison Access Hacks . | . . . . Unauthorized Hacks 5 | . 3 . 2 Terminals 4 | . 2 . 2 Botnet 4 | . 2 . 2 Fabricators . | . . . . Repair Stations . | . . . . Recycling Units 1 | . 1 . . Tunnel 1 | . 1 . . Scanalyzers . | . . . . Garrison Access . | . . . . Data Cores Recovered . | . . . . Used . | . . . . Hacking Detections 11 | . 8 . 3 Full Trace Events . | . . . . Feedback Events . | . . . . Feedback Blocked . | . . . . Robot Schematics Acquired . | . . . . Robots Built . | . . . . Authchips . | . . . . Time . | . . . . Total Robot Build Rating . | . . . . Part Schematics Acquired . | . . . . Parts Built . | . . . . Authchips . | . . . . Time . | . . . . Total Part Build Rating . | . . . . Parts Repaired 2 | . 2 . . Time 26 | . 26 . . Parts Recycled . | . . . . Recycled Matter . | . . . . Retrieved Matter . | . . . . Retrieved Components . | . . . . Parts Scanalyzed . | . . . . Part Schematics Acquired . | . . . . Parts Damaged . | . . . . Bothacking | -11 -10 -10 -8 ------------ Run | Yrd Mat Sub Rec Used RIF Installer . | . . . . Robots Hacked . | . . . . Non-combat . | . . . . Combat . | . . . . Robot Hacks Applied . | . . . . Relay Couplers Released . | . . . . Fabnet Peak Effective % . | . . . . Robots Rewired . | . . . . Allies Hacked . | . . . . Hacks Repelled . | . . . . Allies | -11 -10 -10 -8 -------- Run | Yrd Mat Sub Rec Total Allies . | . . . . Largest Group . | . . . . Highest-Rated Group . | . . . . Highest-Rated Ally . | . . . . Total Orders . | . . . . Ally Attacks . | . . . . Total Damage . | . . . . Kills . | . . . . Allies Corrupted . | . . . . Allies Melted . | . . . . Intel | -11 -10 -10 -8 ------- Run | Yrd Mat Sub Rec Robot Analysis Total 2 | . 2 . . Derelict Logs Recovered 1 | . . 1 . Drone Launches . | . . . . Drone Recoveries . | . . . . Exploration | -11 -10 -10 -8 ------------- Run | Yrd Mat Sub Rec Turns Passed 5749 | 162 1337 3719 531 Spaces Moved 2859 | 148 803 1670 238 Core 16 | 16 . . . Treads 2320 | . 412 1670 238 Legs . | . . . . Wheels 523 | 132 391 . . Hover . | . . . . Flight . | . . . . Fastest Speed 50 | 50 80 160 160 Average Speed 173 | 76 121 201 206 Slowest Speed 250 | 80 160 250 250 Overloaded Moves . | . . . . Propulsion Burnouts . | . . . . Robots Hopped . | . . . . Cave-ins Triggered . | . . . . Exploration Rate (%) 53 | 5 98 65 47 Regions Visited 3 Branch Regions 2 Pre-discovered Areas 2 | . 1 1 . Known Exits Taken 1 | . 1 . . Unknown Exits Taken 2 | 1 . 1 . Scrap Searched 10 | . . 10 . Spaces Dug 7 | . . 7 . Terrain Destroyed 36 | . . 27 9 Melee . | . . . . Projectile 36 | . . 27 9 AOE . | . . . . Terrain Rammed . | . . . . Walls Destroyed . | . . . . Machines Disabled . | . . . . Actions | -11 -10 -10 -8 --------- Run | Yrd Mat Sub Rec Total 3298 | 174 1030 1830 264 Wait 137 | 9 105 10 13 Move 2856 | 147 802 1669 238 Hop . | . . . . Pick Up 23 | 1 16 6 . Fast Attach 25 | 7 11 6 1 Attach 4 | . 2 1 1 Detach . | . . . . Swap 15 | 1 7 6 1 Drop 36 | . 18 16 2 Fire 180 | 9 69 94 8 Melee . | . . . . Ram . | . . . . Kick . | . . . . Crush 2 | . . 2 . Escape Stasis . | . . . . Rewire . | . . . . Trap . | . . . . Miscellaneous 20 | . . 20 . Route ------- -11/Scrapyard -10/Materials (discovered 5 exits: *Mat x3 / *Min / *Sub) -10/Subcaves (discovered 3 exits: [*Mat x2] / *Rec) -8/Recycling History --------- Turn | Location | Event 2 | -11/Scrapyard | Met Revision 17 54 | -11/Scrapyard | Discovered new exit (range 8) 163 | -11/Scrapyard | Entered Materials 221 | -10/Materials | Discovered new exit (range 16) 259 | -10/Materials | Identified exit to Materials 302 | -10/Materials | Build established: Mutant 394 | -10/Materials | Discovered new exit (range 7) 398 | -10/Materials | Identified exit to Mines 430 | -10/Materials | Repaired Assault Rifle 445 | -10/Materials | Repaired Assault Rifle 677 | -10/Materials | Destroyed 7 combat bots 722 | -10/Materials | Build established: Scavenger-Mutant 780 | -10/Materials | Discovered exit to Materials (range 16) 1059 | -10/Materials | Build established: Mutant 1196 | -10/Materials | Discovered exit to Materials (range 16) 1261 | -10/Materials | Discovered new exit (range 11) 1500 | -10/Materials | Identified exit to Subcaves 1500 | -10/Materials | Entered Subcaves 1713 | -10/Subcaves | Ambushed by swarm of Subdwellers 1720 | -10/Subcaves | Ambushed by Subdwellers from Twisted Machinery 1745 | -10/Subcaves | Core integrity fell below 50% 2378 | -10/Subcaves | Shifting Twisted Machinery released Flamer 2449 | -10/Subcaves | Discovered new exit (range 12) 3375 | -10/Subcaves | Discovered new exit (range 9) 3410 | -10/Subcaves | Visited Clippyterm 3417 | -10/Subcaves | Learned 4 Materials zone layouts 3420 | -10/Subcaves | Learned Factory fabricator intel 3609 | -10/Subcaves | Disturbed a concealed Subdweller 3609 | -10/Subcaves | Disturbed a concealed Subdweller 3819 | -10/Subcaves | Core integrity fell below 20% 3844 | -10/Subcaves | Discovered new exit (range 9) 3947 | -10/Subcaves | Build established: Derelict-Mutant 4132 | -10/Subcaves | Learned location of Zion (-7) 4132 | -10/Subcaves | Met a Zionite searching for "candidates" 4828 | -10/Subcaves | Shifting Twisted Machinery released Battle Cannon 4829 | -10/Subcaves | Shifting Twisted Machinery released Piercing Trap 5219 | -10/Subcaves | Entered Recycling 5220 | -8/Recycling | Met a Zionite searching for Scraptown 5750 | -8/Recycling | Destroyed by G-47 Trooper with Particle Gun Last Messages --------------- 05730_ HV Slug penetrates Wall. 05733_ S-10 Pest suffers critical hit (Destroy). 05733_ Destroyed Flight Unit. 05733_ S-10 Pest knocked back. 05736_ HV Slug penetrates Y-45 Defender. 05736_ Y-45 Defender suffers critical hit (Destroy). 05736_ Y-45 Defender destroyed. 05736_ HV Slug penetrates Wall. 05739_ HV Slug penetrates G-47 Trooper. 05739_ G-47 Trooper suffers critical hit (Destroy). 05739_ Destroyed Lgt. Nuclear Core. 05739_ HV Slug penetrates I-25 Savior. 05739_ I-25 Savior destroyed. 05739_ T-07 Excavator suffers critical hit (Destroy). 05739_ T-07 Excavator destroyed. 05739_ Critical hit (Destroy). 05746_ U-05 Engineer builds a Wall. 05747_ R-06 Scavenger collects Imp. Ion Engine. 05747_ Bore Cannon destroyed. 05750_ R-06 Scavenger collects Heat Sink. Map ----- +----------------------------------------------------+ | ????? ???????????# "??# # #??? | | ????? ???????????# Y??# """ # #??? | | ????? ???????????# "??# """ # #### | | ????? ???????????# #??# """ # # | | ????# #??????????# #??# + # | | ????# "??????##### #??####+##### # | | ????# Y??????#"""# #?????# #???# # | | ????# "????###"T"#+##????# #???# + | | ??### #????# #????# #???# # | | ??#"" #????# #????# #???# # | | ??#"Y #????# """ #????# #???# # | | ??#"" ###### """ ###### #???# # | | ????# + """ # ## #???# #### | | ????# ### """ + #???#####??? | | ??#"" #?# """ # ####????###???? | | ??#"Y #?# ## ##????####"##??# | | ??#"" #?# ## #?????#"""#"#??# | | ??### ######+###### #######"Y"# #### | | ????# | | ????# | | ????# % | | ????# | | ????# | | ????# | | ????# | | ???#; @ rg u | | ????# #####g#;s######+########"Y"### | | ????# ???t r=??# #"""#?## | | ????# ???# a !%uY #?# """ """ #####??? | | ??????????# b !d% #?# """ """ #??????? | | ??????????# %]h#?# """ """ ???????? | | ??????????#/ =%=% #?# """ """ ???????? | | ??????????# %=!=;?# """ """????????? | | ??????????#% ][ ;## ?? ?????????? | | ??????????# ;## ???????????????? | | ??????????# ####???????????????? | | ??????????##########??????????????????? | | ??????????????????????????????????????? | | ??????????????????????????????????????? | | ??????????????????????????????????????? | | ??????????????????????????????????????? | | ??????????????????????????????????????? | | ??????????????????????????????????????? | | ??????????????????????????????????????? | | ??????????????????????????????????????? | | ??????????????????????????????????????? | | ??????????????????????????????????????? | | ??????????????????????????????????????? | | | | | +----------------------------------------------------+ Best States ------------- Heat Dissipation 35 Energy Generation 19 Energy Capacity 315 Matter Stores 300 Matter Capacity 300 Sight Range 16 Terrain Scan Density 10 Armor Coverage 800 Evasion (%) 50 Recoil Reduction 2 Item Schematics ----------------- None Robot Schematics ------------------ None Fabricated ------------ Nothing Alien Tech Used ----------------- None Achievements -------------- None Challenges ------------ None Game ------ Seed PortableSuspensionModule Manual? 0 Play Time 00:35:20 Cumulative 7.5 hours Start 2024.08.07 @ 05:04:50 End 2024.08.07 @ 05:40:45 Sessions 3 Manual Loads 0 Difficulty Rogue Special Mode None Game No. 3 Rogue 3 Adventurer 0 Explorer 0 Win Type - Total 0 Types 0/0/0/0/0/0/0/0/0 Lore% 2 Gallery% 16 Achievement% 24 Wizard Run 0 Options --------- Layout 0 ASCII 0 Keyboard 0 Movement Mouse Keybinds 0 Fullscreen 1 Font 24/Smallcaps Map View 183x50 Zoom Use 0% Tactical HUD 1 Map Filters NONE Filters NONE Steam 0 RUN: cefb7706-8fe9-4710-9e7b-7fb2ec3a3027